Workbook

Sheet 2022年4月
A1: 陆 丰 市 2022 年 4 月 财 政 预 算 收 入 完 成 情 况 表
A2: 2022-04-30 | L2: 单位：万元
B3: 年 度 | C3: 累 计 | D3: 占 年 | E3: 上 年 | F3: 比上年 | G3: 比上年 | H3: 本 月 | I3: 上 年 | J3: 比上年 | K3: 比上年
A4: 收 入 项 目 | B4: 预 算 | C4: 完 成 | D4: 预 算 | E4: 同 期 | F4: 同期增 | G4: 同期增 | H4: 完 成 | I4: 同 月 | J4: 同月增 | K4: 同月增 | L4: 备 注
B5: 数 | C5: 数 | D5: % | E5: 完 成 | F5: 减额 | G5: (减)% | H5: 数 | I5: 完 成 | J5: 减额 | K5: (减)%
A6: （一）税收收入 | C6: =SUM(C7:C20) -> 19,344 | E6: =SUM(E7:E20) -> 19,929 | F6: =C6-E6 -> -585 | G6: =F6/E6*100 -> -2.9 | H6: =SUM(H7:H20) -> 3,499 | I6: =SUM(I7:I20) -> 4345 | J6: =H6-I6 -> -846 | K6: =J6/I6*100 -> -19.5
A7: 1、增值税 | C7: 5,255 | E7: 4,973 | F7: =C7-E7 -> 282 | G7: =F7/E7*100 -> 5.7 | H7: 1,182 | I7: 1,182 | J7: =H7-I7 -> 0 | K7: =J7/I7*100 -> 0.0
A8: 2、企业所得税 | C8: 2,109 | E8: 3,800 | F8: =C8-E8 -> -1,691 | G8: =F8/E8*100 -> -44.5 | H8: 763 | I8: 1,199 | J8: =H8-I8 -> -436 | K8: =J8/I8*100 -> -36.4
A9: 3、个人所得税 | C9: 143 | E9: 447 | F9: =C9-E9 -> -304 | G9: =F9/E9*100 -> -68.0 | H9: 29 | I9: 87 | J9: =H9-I9 -> -58 | K9: =J9/I9*100 -> -66.7
A10: 4、资源税 | C10: 44 | E10: 46 | F10: =C10-E10 -> -2 | G10: =F10/E10*100 -> -4.3 | H10: 2 | I10: 20 | J10: =H10-I10 -> -18 | K10: =J10/I10*100 -> -90.0
A11: 5、城市维护建设税 | C11: 1,768 | E11: 1,852 | F11: =C11-E11 -> -84 | G11: =F11/E11*100 -> -4.5 | H11: 375 | I11: 425 | J11: =H11-I11 -> -50 | K11: =J11/I11*100 -> -11.8
A12: 6、房产税 | C12: 1,428 | E12: 178 | F12: =C12-E12 -> 1,250 | G12: =F12/E12*100 -> 702.2 | H12: 59 | I12: 37 | J12: =H12-I12 -> 22 | K12: =J12/I12*100 -> 59.5
A13: 7、印花税 | C13: 562 | E13: 392 | F13: =C13-E13 -> 170 | G13: =F13/E13*100 -> 43.4 | H13: 98 | I13: 116 | J13: =H13-I13 -> -18 | K13: =J13/I13*100 -> -15.5
A14: 8、城镇土地使用税 | C14: 456 | E14: 142 | F14: =C14-E14 -> 314 | G14: =F14/E14*100 -> 221.1 | H14: 24 | I14: 25 | J14: =H14-I14 -> -1 | K14: =J14/I14*100 -> -4.0
A15: 9、土地增值税 | C15: 3,093 | E15: 2,168 | F15: =C15-E15 -> 925 | G15: =F15/E15*100 -> 42.7 | H15: 165 | I15: 504 | J15: =H15-I15 -> -339 | K15: =J15/I15*100 -> -67.3
A16: 10、车船使用税 | C16: 584 | E16: 504 | F16: =C16-E16 -> 80 | G16: =F16/E16*100 -> 15.9 | H16: 150 | I16: 125 | J16: =H16-I16 -> 25 | K16: =J16/I16*100 -> 20.0
A17: 11、环保税 | C17: 128 | E17: 64 | F17: =C17-E17 -> 64 | G17: =F17/E17*100 -> 100.0 | H17: =C17-'[1]2022年2月'!C17 -> 45 | I17: 30 | J17: =H17-I17 -> 15 | K17: =J17/I17*100 -> 50.0
A18: 12、耕地占用税 | C18: 1,796 | E18: 1,666 | F18: =C18-E18 -> 130 | G18: =F18/E18*100 -> 7.8 | H18: 0 | I18: 18 | J18: =H18-I18 -> -18 | K18: =J18/I18*100 -> -100.0
A19: 13、契 税 | C19: 1,978 | E19: 3,696 | F19: =C19-E19 -> -1,718 | G19: =F19/E19*100 -> -46.5 | H19: 607 | I19: 576 | J19: =H19-I19 -> 31 | K19: =J19/I19*100 -> 5.4
A20: 14、其他税收收入 | E20: 1 | H20: =C20-'[1]2022年2月'!C20 -> 0 | I20: 1
A21: （二）非税收入 | C21: =SUM(C22:C29) -> 16,896 | E21: =E22+E23+E24+E25+E26+E27+E28+E29 -> 12,004 | F21: =C21-E21 -> 4,892 | G21: =F21/E21*100 -> 40.8 | H21: =H22+H23+H24+H25+H26+H27+H28+H29 -> 3,120 | I21: =I22+I23+I24+I25+I26+I27+I28+I29 -> 2392 | J21: =H21-I21 -> 728 | K21: =J21/I21*100 -> 30.4
A22: 1、专项收入 | C22: 1,251 | E22: 1,228 | F22: =C22-E22 -> 23 | G22: =F22/E22*100 -> 1.9 | H22: 256 | I22: 281 | J22: =H22-I22 -> -25 | K22: =J22/I22*100 -> -8.9
A23: 2、行政事业性收费收入 | C23: 1,488 | E23: 4,989 | F23: =C23-E23 -> -3,501 | G23: =F23/E23*100 -> -70.2 | H23: 125 | I23: 1,935 | J23: =H23-I23 -> -1,810 | K23: =J23/I23*100 -> -93.5
A24: 3、罚没收入 | C24: 9,227 | E24: 1,193 | F24: =C24-E24 -> 8,034 | G24: =F24/E24*100 -> 673.4 | H24: 1,486 | I24: 55 | J24: =H24-I24 -> 1,431 | K24: =J24/I24*100 -> 2,601.8
A25: 4、国有资源（资产）有偿使用收入 | C25: 2,608 | E25: 3,809 | F25: =C25-E25 -> -1,201 | G25: =F25/E25*100 -> -31.5 | H25: 3 | I25: 74 | J25: =H25-I25 -> -71 | K25: =J25/I25*100 -> -95.9
A26: 5、政府住房基金收入 | C26: 106 | F26: =C26-E26 -> 106 | G26: =F26/E26*100 ->  | H26: 0 | J26: =H26-I26 -> 0 | K26: =J26/I26*100 -> 
A27: 6、捐赠收入 | C27: 603 | E27: 360 | F27: =C27-E27 -> 243 | G27: =F27/E27*100 -> 67.5 | H27: 0 | J27: =H27-I27 -> 0 | K27: =J27/I27*100 -> 
A28: 7、其他收入 | C28: 1,613 | E28: 425 | F28: =C28-E28 -> 1,188 | G28: =F28/E28*100 -> 279.5 | H28: 1,250 | I28: 47 | J28: =H28-I28 -> 1,203 | K28: =J28/I28*100 -> 2,559.6
A29: 8、国有资本经营收入 | H29: =C29-'[1]2022年2月'!C29 -> 0
A30: 一、一般公共预算收入 | C30: =C6+C21 -> 36,240 | E30: =E6+E21 -> 31,933 | F30: =C30-E30 -> 4,307 | G30: =F30/E30*100 -> 13.5 | H30: =H6+H21 -> 6,619 | I30: =I6+I21 -> 6737 | J30: =H30-I30 -> -118 | K30: =J30/I30*100 -> -1.8
A31: 二、政府性基金预算收入小计 | C31: 6,272 | E31: 59,684 | F31: =C31-E31 -> -53,412 | G31: =F31/E31*100 -> -89.5 | H31: =C31-'[1]2022年3月 '!C31 -> 1,943 | I31: 7434 | J31: =H31-I31 -> -5,491 | K31: =J31/I31*100 -> -73.9
A32: 其中：国有土地使用权出让收入 | C32: 5,007 | E32: 58,909 | F32: =C32-E32 -> -53,902 | G32: =F32/E32*100 -> -91.5 | H32: =C32-'[1]2022年3月 '!C32 -> 1,470 | I32: 7338 | J32: =H32-I32 -> -5,868 | K32: =J32/I32*100 -> -80.0
A33: 三、国有资本经营收入小计 | C33: 19 | J33: =H33-I33 -> 0
A34: 收入合计 | C34: =C30+C31+C33 -> 42,531 | E34: =E30+E31+E33 -> 91,617 | F34: =C34-E34 -> -49,086 | G34: =F34/E34*100 -> -53.6 | H34: =H30+H31+H33 -> 8,562 | I34: =I30+I31+I33 -> 14171 | J34: =H34-I34 -> -5,609 | K34: =J34/I34*100 -> -39.6
A35: 注：2022年度预算草案还未通过人大决议，故本表没有反映年度预算数和占比数。 | L35: 陆丰市财政局国库股

Sheet Sheet1

Sheet Sheet2

Sheet Sheet3
